fUSD/lending_fUSD_20240814
["ID","MTS","AMOUNT","RATE_DAILY","PERIOD"]
[334819869,1723603928524,-502.94321601,0.00015342,2]
[334819870,1723603928533,-500.0,0.00015342,2]
[334819871,1723603928543,-500.0,0.00015342,2]
[334819872,1723603928552,-788.88,0.00015342,2]
[334819873,1723603928561,-500.0,0.00015342,2]
[334819874,1723603928796,-500.0,0.00015342,2]
[334819875,1723603928806,-500.0,0.00015342,2]
[334819876,1723603928816,-500.0,0.00015342,2]
[334819877,1723603928825,-523.43894407,0.00015342,2]
[334819878,1723603928835,-500.0,0.00015342,2]
[334819879,1723603928845,-540.27,0.00015342,2]
[334819880,1723603928854,-500.0,0.00015342,2]
[334819881,1723603928865,-500.0,0.00015342,2]
[334819882,1723603928874,-500.0,0.00015342,2]
[334819883,1723603928884,-500.0,0.00015342,2]
[334819884,1723603928894,-500.0,0.00015342,2]
[334819885,1723603928903,-539.27,0.00015342,2]
[334819886,1723603928913,-500.0,0.00015342,2]
[334819887,1723603928923,-500.0,0.00015342,2]
[334819888,1723603928932,-556.85,0.00015342,2]
[334819889,1723603928942,-500.0,0.00015342,2]
[334819890,1723603928951,-510.55,0.00015342,2]
[334819891,1723603928963,-1828.99,0.00015342,2]
[334819892,1723603928974,-500.0,0.00015342,2]
[334819893,1723603928983,-500.0,0.00015342,2]
[334819894,1723603928993,-521.14,0.00015342,2]
[334819895,1723603929003,-500.0,0.00015342,2]
[334819896,1723603929013,-500.0,0.00015342,2]
[334819897,1723603929023,-500.0,0.00015342,2]
[334819898,1723603929033,-500.0,0.00015342,2]
[334819899,1723603929047,-500.0,0.00015342,2]
[334819900,1723603929058,-500.0,0.00015342,2]
[334819901,1723603929068,-500.0,0.00015342,2]
[334819902,1723603929078,-504.3919706,0.00015342,2]
[334819903,1723603929088,-500.0,0.00015342,2]
[334819904,1723603929097,-788.86,0.00015342,2]
[334819905,1723603929107,-500.0,0.00015342,2]
[334819906,1723603929116,-500.0,0.00015342,2]
[334819907,1723603929125,-500.0,0.00015342,2]
[334819908,1723603929135,-419.56729281,0.00015342,2]
[334819909,1723603929144,-570.12,0.00015342,2]
[334819910,1723603929154,-710.6,0.00015342,2]
[334819911,1723603929163,-500.0,0.00015342,2]
[334819912,1723603929172,-500.0,0.00015342,2]
[334819913,1723603929181,-500.0,0.00015342,2]
[334819914,1723603929191,-767.65,0.00015342,2]
[334819915,1723603929200,-504.08506278,0.00015342,2]
[334819916,1723603929210,-550.4,0.00015342,2]
[334819917,1723603929219,-500.0,0.00015342,2]
[334819918,1723603929228,-500.0,0.00015342,2]
[334819919,1723603929238,-500.0,0.00015342,2]
[334819920,1723603929247,-500.0,0.00015342,2]
[334819921,1723603929257,-500.0,0.00015342,2]
[334819922,1723603929266,-500.0,0.00015342,2]
[334819923,1723603929276,-500.0,0.00015342,2]
[334819924,1723603929285,-500.0,0.00015342,2]
[334819925,1723603929295,-1176.84,0.00015342,2]
[334819926,1723603929305,-593.23,0.00015342,2]
[334819927,1723603929314,-500.0,0.00015342,2]
[334819928,1723603929324,-500.0,0.00015342,2]
[334819929,1723603929333,-506.16935525,0.00015342,2]
[334819930,1723603929343,-500.0,0.00015342,2]
[334819931,1723603929352,-500.0,0.00015342,2]
[334819932,1723603929362,-500.0,0.00015342,2]
[334819933,1723603929373,-500.0,0.00015342,2]
[334819934,1723603929382,-500.0,0.00015342,2]
[334819935,1723603929392,-500.0,0.00015342,2]
[334819936,1723603929402,-500.0,0.00015342,2]
[334819937,1723603929413,-502.42500441,0.00015342,2]
[334819938,1723603929422,-1645.84,0.00015342,2]
[334819939,1723603929431,-500.0,0.00015342,2]
[334819940,1723603929441,-502.79056306,0.00015342,2]
[334819941,1723603929451,-500.0,0.00015342,2]
[334819942,1723603929461,-500.0,0.00015342,2]
[334819943,1723603929472,-500.0,0.00015342,2]
[334819944,1723603929482,-500.0,0.00015342,2]
[334819945,1723603929492,-527.39,0.00015342,2]
[334819946,1723603929502,-502.94564749,0.00015342,2]
[334819947,1723603929511,-500.0,0.00015342,2]
[334819948,1723603929521,-500.0,0.00015342,2]
[334819949,1723603929531,-500.0,0.00015342,2]
[334819950,1723603929542,-150.0,0.00015342,2]
[334819951,1723603929552,-679.23,0.00015342,2]
[334819952,1723603929563,-500.0,0.00015342,2]
[334819953,1723603929574,-502.05617695,0.00015342,2]
[334819954,1723603929584,-637.8241676,0.00015342,2]
[334819955,1723603929595,-500.0,0.00015342,2]
[334819956,1723603929605,-500.0,0.00015342,2]
[334819957,1723603929615,-1488.54,0.00015342,2]
[334819958,1723603929625,-500.0,0.00015342,2]
[334819959,1723603929635,-500.0,0.00015342,2]
[334819960,1723603929645,-500.0,0.00015342,2]
[334819961,1723603929655,-369.98870218,0.00015342,2]
[334819962,1723603929666,-500.0,0.00015342,2]
[334819963,1723603929676,-500.0,0.00015342,2]
[334819964,1723603929686,-500.0,0.00015342,2]
[334819965,1723603929696,-370.77484073,0.00015342,2]
[334819966,1723603929706,-625.85,0.00015342,2]
[334819967,1723603929717,-500.0,0.00015342,2]
[334819968,1723603929727,-500.0,0.00015342,2]
[334819969,1723603929738,-500.0,0.00015342,2]
[334819970,1723603929747,-3037.22,0.00015342,2]
[334819971,1723603929757,-500.0,0.00015342,2]
[334819972,1723603929768,-300.0,0.00015342,2]
[334819973,1723603929778,-500.0,0.00015342,2]
[334819974,1723603929788,-503.18546068,0.00015342,2]
[334819975,1723603929798,-500.0,0.00015342,2]
[334819976,1723603929809,-500.0,0.00015342,2]
[334819977,1723603929819,-1050.9,0.00015342,2]
[334819978,1723603929830,-500.0,0.00015342,2]
[334819979,1723603929840,-500.0,0.00015342,2]
[334819980,1723603929850,-502.53058305,0.00015342,2]
[334819981,1723603929861,-500.0,0.00015342,2]
[334819982,1723603929872,-500.0,0.00015342,2]
[334819983,1723603929882,-500.0,0.00015342,2]
[334819984,1723603929894,-500.0,0.00015342,2]
[334819985,1723603929904,-507.79480259,0.00015342,2]
[334819986,1723603929914,-500.0,0.00015342,2]
[334819987,1723603929924,-500.0,0.00015342,2]
[334819988,1723603929935,-500.0,0.00015342,2]
[334819989,1723603929945,-500.0,0.00015342,2]
[334819990,1723603929956,-500.0,0.00015342,2]
[334819991,1723603929970,-577.67995053,0.00015342,2]
[334819992,1723603929980,-500.0,0.00015342,2]
[334819993,1723603929990,-898.04,0.00015342,2]
[334819994,1723603930001,-500.0,0.00015342,2]
[334819995,1723603930012,-1015.12,0.00015342,2]
[334819996,1723603930022,-500.0,0.00015342,2]
[334819997,1723603930032,-677.19,0.00015342,2]
[334819998,1723603930046,-500.0,0.00015342,2]
[334819999,1723603930056,-3125.45,0.00015342,2]
[334820000,1723603930067,-2121.22,0.00015342,2]
[334820001,1723603930077,-598.06230903,0.00015342,2]
[334820002,1723603930087,-500.0,0.00015342,2]
[334820003,1723603930097,-935.8,0.00015342,2]
[334820004,1723603930108,-500.0,0.00015342,2]
[334820005,1723603930118,-2706.39,0.00015342,2]
[334820006,1723603930128,-500.0,0.00015342,2]
[334820007,1723603930138,-615.84845699,0.00015342,2]
[334820008,1723603930147,-500.0,0.00015342,2]
[334820009,1723603930157,-500.0,0.00015342,2]
[334820010,1723603930167,-500.0,0.00015342,2]
[334820011,1723603930177,-517.73248106,0.00015342,2]
[334820012,1723603930188,-4210.94,0.00015342,2]
[334820013,1723603930198,-4601.07,0.00015342,2]
[334820014,1723603930208,-500.0,0.00015342,2]
[334820015,1723603930218,-1228.41,0.00015342,2]
[334820016,1723603930229,-500.0,0.00015342,2]
[334820017,1723603930240,-500.0,0.00015342,2]
[334820018,1723603930250,-951.16,0.00015342,2]
[334820019,1723603930260,-919.64,0.00015342,2]
[334820020,1723603930270,-584.56,0.00015342,2]
[334820021,1723603930280,-1794.95,0.00015342,2]
[334820022,1723603930290,-500.0,0.00015342,2]
[334820023,1723603930300,-3321.93,0.00015342,2]
[334820024,1723603930309,-1422.69,0.00015342,2]
[334820025,1723603930319,-500.0,0.00015342,2]
[334820026,1723603930329,-2496.28,0.00015342,2]
[334820027,1723603930339,-500.0,0.00015342,2]
[334820028,1723603930349,-1937.4,0.00015342,2]
[334820029,1723603930359,-363.15874612,0.00015342,2]
[334820030,1723603930369,-702.18,0.00015342,2]
[334820031,1723603930379,-500.0,0.00015342,2]
[334820032,1723603930388,-500.0,0.00015342,2]
[334820033,1723603930399,-525.91,0.00015342,2]
[334820034,1723603930409,-720.77,0.00015342,2]
[334820035,1723603930419,-2973.74,0.00015342,2]
[334820036,1723603930429,-500.0,0.00015342,2]
[334820037,1723603930439,-657.62,0.00015342,2]
[334820038,1723603930449,-2208.41,0.00015342,2]
[334820039,1723603930460,-2020.58,0.00015342,2]
[334820040,1723603930470,-500.0,0.00015342,2]
[334820041,1723603930480,-956.36,0.00015342,2]
[334820042,1723603930490,-500.0,0.00015342,2]
[334820043,1723603930500,-500.0,0.00015342,2]
[334820044,1723603930510,-830.48,0.00015342,2]
[334820045,1723603930520,-908.14,0.00015342,2]
[334820046,1723603930530,-500.0,0.00015342,2]
[334820047,1723603930540,-1531.76,0.00015342,2]
[334820048,1723603930550,-806.72,0.00015342,2]
[334820049,1723603930561,-500.0,0.00015342,2]
[334820050,1723603930571,-1233.68,0.00015342,2]
[334820051,1723603930581,-3549.23,0.00015342,2]
[334820052,1723603930591,-506.83,0.00015342,2]
[334820053,1723603930601,-881.49,0.00015342,2]
[334820054,1723603930611,-1686.3,0.00015342,2]
[334820055,1723603930621,-1104.64,0.00015342,2]
[334820056,1723603930632,-500.0,0.00015342,2]
[334820057,1723603930643,-959.01,0.00015342,2]
[334820058,1723603930652,-500.0,0.00015342,2]
[334820059,1723603930664,-3432.32,0.00015342,2]
[334820060,1723603930675,-3444.79,0.00015342,2]
[334820061,1723603930686,-500.0,0.00015342,2]
[334820062,1723603930696,-500.0,0.00015342,2]
[334820063,1723603930705,-500.0,0.00015342,2]
[334820064,1723603930716,-1279.57,0.00015342,2]
[334820065,1723603930727,-500.0,0.00015342,2]
[334820066,1723603930737,-644.3,0.00015342,2]
[334820067,1723603930748,-500.0,0.00015342,2]
[334820068,1723603930758,-332.1122572,0.00015342,2]
[334820069,1723603930768,-526.04,0.00015342,2]
[334820070,1723603930778,-500.0,0.00015342,2]
[334820071,1723603930788,-604.27,0.00015342,2]
[334820072,1723603930798,-1106.38,0.00015342,2]
[334820073,1723603930808,-1190.65,0.00015342,2]
[334820074,1723603930817,-500.0,0.00015342,2]
[334820075,1723603930828,-1152.6,0.00015342,2]
[334820076,1723603930839,-500.0,0.00015342,2]
[334820077,1723603930850,-500.0,0.00015342,2]
[334820078,1723603930859,-500.0,0.00015342,2]
[334820079,1723603930871,-621.41,0.00015342,2]
[334820080,1723603930881,-500.0,0.00015342,2]
[334820081,1723603930891,-500.0,0.00015342,2]
[334820082,1723603930901,-3396.28,0.00015342,2]
[334820083,1723603930911,-500.0,0.00015342,2]
[334820084,1723603930921,-891.26,0.00015342,2]
[334820085,1723603930931,-904.92,0.00015342,2]
[334820086,1723603930941,-500.0,0.00015342,2]
[334820087,1723603930951,-500.0,0.00015342,2]
[334820088,1723603930961,-500.0,0.00015342,2]
[334820089,1723603930972,-2942.78,0.00015342,2]
[334820090,1723603930982,-500.0,0.00015342,2]
[334820091,1723603930992,-692.81,0.00015342,2]
[334820092,1723603931003,-671.73,0.00015342,2]
[334820093,1723603931015,-500.0,0.00015342,2]
[334820094,1723603931025,-1883.45,0.00015342,2]
[334820095,1723603931038,-500.0,0.00015342,2]
[334820096,1723603931049,-4358.76,0.00015342,2]
[334820097,1723603931062,-531.95,0.00015342,2]
[334820098,1723603931072,-500.0,0.00015342,2]
[334820099,1723603931082,-500.0,0.00015342,2]
[334820100,1723603931091,-852.51,0.00015342,2]
[334820101,1723603931101,-601.64,0.00015342,2]
[334820102,1723603931110,-500.0,0.00015342,2]
[334820103,1723603931121,-1102.89,0.00015342,2]
[334820104,1723603931130,-500.0,0.00015342,2]
[334820105,1723603931140,-500.0,0.00015342,2]
[334820106,1723603931150,-3773.36,0.00015342,2]
[334820107,1723603931160,-1274.4,0.00015342,2]
[334820108,1723603931170,-1238.0,0.00015342,2]
[334820109,1723603931180,-500.0,0.00015342,2]
[334820110,1723603931190,-500.0,0.00015342,2]
[334820111,1723603931200,-500.0,0.00015342,2]
[334820112,1723603931211,-3131.44,0.00015342,2]
[334820113,1723603931221,-500.0,0.00015342,2]
[334820114,1723603931230,-2308.42,0.00015342,2]
[334820115,1723603931240,-3908.47,0.00015342,2]
[334820116,1723603931249,-500.0,0.00015342,2]
[334820117,1723603931259,-2319.06,0.00015342,2]
[334820118,1723603931269,-1013.41,0.00015342,2]
[334820119,1723603931279,-500.0,0.00015342,2]
[334820120,1723603931288,-543.97,0.00015342,2]
[334820121,1723603931394,-553.98332188,0.00015342,2]
[334820122,1723603931405,-500.0,0.00015342,2]
[334820123,1723603931415,-611.41,0.00015342,2]
[334820124,1723603931425,-4269.05,0.00015342,2]
[334820125,1723603931434,-4275.05,0.00015342,2]
[334820126,1723603931444,-1143.12,0.00015342,2]
[334820127,1723603931453,-4663.28,0.00015342,2]
[334820128,1723603931463,-1116.18,0.00015342,2]
[334820129,1723603931472,-1963.14,0.00015342,2]
[334820130,1723603931481,-500.0,0.00015342,2]
[334820131,1723603931490,-500.0,0.00015342,2]
[334820132,1723603931500,-506.50088503,0.00015342,2]
[334820133,1723603931509,-513.84,0.00015342,2]
[334820134,1723603931519,-500.0,0.00015342,2]
[334820135,1723603931528,-563.85,0.00015342,2]
[334820136,1723603931537,-1042.63,0.00015342,2]
[334820137,1723603931546,-500.0,0.00015342,2]
[334820138,1723603931555,-5039.17,0.00015342,2]
[334820139,1723603931565,-500.0,0.00015342,2]
[334820140,1723603931575,-2211.11,0.00015342,2]
[334820141,1723603931584,-500.0,0.00015342,2]
[334820142,1723603931593,-886.37,0.00015342,2]
[334820143,1723603931604,-507.19896115,0.00015342,2]
[334820144,1723603931614,-871.5,0.00015342,2]
[334820145,1723603931624,-500.0,0.00015342,2]
[334820146,1723603931634,-500.0,0.00015342,2]
[334820147,1723603931644,-1663.19,0.00015342,2]
[334820148,1723603931654,-500.0,0.00015342,2]
[334820149,1723603931663,-5519.37,0.00015342,2]
[334820150,1723603931672,-151.0,0.00015342,2]
[334820151,1723603931682,-548.95,0.00015342,2]
[334820152,1723603931692,-1172.03,0.00015342,2]
[334820153,1723603931701,-500.0,0.00015342,2]
[334820154,1723603931710,-500.0,0.00015342,2]
[334820155,1723603931719,-500.0,0.00015342,2]
[334820156,1723603931729,-500.0,0.00015342,2]
[334820157,1723603931738,-1026.14,0.00015342,2]
[334820158,1723603931748,-2558.78,0.00015342,2]
[334820159,1723603931757,-6089.56,0.00015342,2]
[334820160,1723603931767,-500.0,0.00015342,2]
[334820161,1723603931776,-721.59,0.00015342,2]
[334820162,1723603931786,-652.17,0.00015342,2]
[334820163,1723603931795,-1052.72,0.00015342,2]
[334820164,1723603931804,-511.36049919,0.00015342,2]
[334820165,1723603931813,-500.0,0.00015342,2]
[334820166,1723603931823,-500.0,0.00015342,2]
[334820167,1723603931832,-1637.63,0.00015342,2]
[334820168,1723603931841,-541.96,0.00015342,2]
[334820169,1723603931850,-3044.5,0.00015342,2]
[334820170,1723603931860,-2262.05,0.00015342,2]
[334820171,1723603931869,-500.0,0.00015342,2]
[334820172,1723603931878,-4734.54,0.00015342,2]
[334820173,1723603931888,-500.0,0.00015342,2]
[334820174,1723603931897,-6651.45,0.00015342,2]
[334820175,1723603931907,-1697.19,0.00015342,2]
[334820176,1723603931916,-500.0,0.00015342,2]
[334820177,1723603931926,-500.0,0.00015342,2]
[334820178,1723603931935,-500.0,0.00015342,2]
[334820179,1723603931945,-2800.16,0.00015342,2]
[334820180,1723603931954,-500.0,0.00015342,2]
[334820181,1723603931966,-1932.52,0.00015342,2]
[334820182,1723603931976,-500.0,0.00015342,2]
[334820183,1723603931985,-3412.59,0.00015342,2]
[334820184,1723603931994,-500.0,0.00015342,2]
[334820185,1723603932004,-1562.52,0.00015342,2]
[334820186,1723603932015,-500.0,0.00015342,2]
[334820187,1723603932024,-1904.81,0.00015342,2]
[334820188,1723603932034,-3403.14,0.00015342,2]
[334820189,1723603932044,-6160.63,0.00015342,2]
[334820190,1723603932054,-992.23,0.00015342,2]
[334820191,1723603932063,-557.37,0.00015342,2]
[334820192,1723603932073,-504.80093446,0.00015342,2]
[334820193,1723603932082,-500.0,0.00015342,2]
[334820194,1723603932091,-500.0,0.00015342,2]
[334820195,1723603932100,-1080.99,0.00015342,2]
[334820196,1723603932110,-500.0,0.00015342,2]
[334820197,1723603932119,-500.0,0.00015342,2]
[334820198,1723603932128,-500.0,0.00015342,2]
[334820199,1723603932138,-3809.18,0.00015342,2]
[334820200,1723603932147,-500.0,0.00015342,2]
[334820201,1723603932157,-519.68,0.00015342,2]
[334820202,1723603932166,-403.72664968,0.00015342,2]
[334820203,1723603932175,-500.0,0.00015342,2]
[334820204,1723603932185,-500.0,0.00015342,2]
[334820205,1723603932194,-3420.81,0.00015342,2]
[334820206,1723603932204,-2546.25,0.00015342,2]
[334820207,1723603932213,-500.0,0.00015342,2]
[334820208,1723603932222,-3109.12,0.00015342,2]
[334820209,1723603932231,-500.0,0.00015342,2]
[334820210,1723603932241,-610.77,0.00015342,2]
[334820211,1723603932250,-307.18221832,0.00015342,2]
[334820212,1723603932261,-2747.79,0.00015342,2]
[334820213,1723603932270,-1627.16,0.00015342,2]
[334820214,1723603932280,-500.0,0.00015342,2]
[334820215,1723603932289,-500.0,0.00015342,2]
[334820216,1723603932299,-500.0,0.00015342,2]
[334820217,1723603932308,-925.42,0.00015342,2]
[334820218,1723603932317,-500.0,0.00015342,2]
[334820219,1723603932326,-1362.27,0.00015342,2]
[334820220,1723603932335,-737.98,0.00015342,2]
[334820221,1723603932345,-500.0,0.00015342,2]
[334820222,1723603932355,-1014.28,0.00015342,2]
[334820223,1723603932364,-1635.4,0.00015342,2]
[334820224,1723603932374,-500.0,0.00015342,2]
[334820225,1723603932383,-500.0,0.00015342,2]
[334820226,1723603932393,-1754.72,0.00015342,2]
[334820227,1723603932402,-500.0,0.00015342,2]
[334820228,1723603932412,-500.0,0.00015342,2]
[334820229,1723603932421,-500.0,0.00015342,2]
[334820230,1723603932430,-500.0,0.00015342,2]
[334820231,1723603932439,-684.39,0.00015342,2]
[334820232,1723603932449,-2042.47,0.00015342,2]
[334820233,1723603932458,-500.0,0.00015342,2]
[334820234,1723603932467,-372.38958716,0.00015342,2]
[334820235,1723603932476,-2970.97,0.00015342,2]
[334820236,1723603932485,-500.0,0.00015342,2]
[334820237,1723603932494,-500.0,0.00015342,2]
[334820238,1723603932503,-500.0,0.00015342,2]
[334820239,1723603932513,-1135.15,0.00015342,2]
[334820240,1723603932522,-759.05,0.00015342,2]
[334820241,1723603932532,-578.01,0.00015342,2]
[334820242,1723603932541,-541.34,0.00015342,2]
[334820243,1723603932551,-542.71,0.00015342,2]
[334820244,1723603932560,-500.0,0.00015342,2]
[334820245,1723603932569,-4312.18,0.00015342,2]
[334820246,1723603932578,-500.0,0.00015342,2]
[334820247,1723603932587,-993.05,0.00015342,2]
[334820248,1723603932595,-500.0,0.00015342,2]
[334820249,1723603932604,-1593.35,0.00015342,2]
[334820250,1723603932613,-500.0,0.00015342,2]
[334820251,1723603932623,-500.0,0.00015342,2]
[334820252,1723603932632,-500.0,0.00015342,2]
[334820253,1723603932641,-578.58,0.00015342,2]
[334820254,1723603932651,-563.35,0.00015342,2]
[334820255,1723603932661,-1809.06,0.00015342,2]
[334820256,1723603932670,-1425.37,0.00015342,2]
[334820257,1723603932679,-500.0,0.00015342,2]
[334820258,1723603932690,-500.0,0.00015342,2]
[334820259,1723603932701,-2471.25,0.00015342,2]
[334820260,1723603932711,-561.36,0.00015342,2]
[334820261,1723603932723,-1970.05,0.00015342,2]
[334820262,1723603932732,-500.0,0.00015342,2]
[334820263,1723603932742,-500.0,0.00015342,2]
[334820264,1723603932752,-500.0,0.00015342,2]
[334820265,1723603932761,-608.14188897,0.00015342,2]
[334820266,1723603932771,-612.90948752,0.00015342,2]
[334820267,1723603932780,-3890.5,0.00015342,2]
[334820268,1723603932790,-500.0,0.00015342,2]
[334820269,1723603932799,-500.0,0.00015342,2]
[334820270,1723603932810,-1901.09,0.00015342,2]
[334820271,1723603932819,-500.0,0.00015342,2]
[334820272,1723603932829,-2311.16,0.00015342,2]
[334820273,1723603932839,-500.0,0.00015342,2]
[334820274,1723603932848,-816.06,0.00015342,2]
[334820275,1723603932858,-500.0,0.00015342,2]
[334820276,1723603932867,-500.0,0.00015342,2]
[334820277,1723603932877,-506.49,0.00015342,2]
[334820278,1723603932887,-829.82,0.00015342,2]
[334820279,1723603932896,-3657.2,0.00015342,2]
[334820280,1723603932907,-500.0,0.00015342,2]
[334820281,1723603932916,-2053.68,0.00015342,2]
[334820282,1723603932927,-500.0,0.00015342,2]
[334820283,1723603932937,-500.0,0.00015342,2]
[334820284,1723603932947,-500.0,0.00015342,2]
[334820285,1723603932958,-500.0,0.00015342,2]
[334820286,1723603932972,-500.0,0.00015342,2]
[334820287,1723603932981,-500.0,0.00015342,2]
[334820288,1723603932991,-500.0,0.00015342,2]
[334820289,1723603933003,-500.0,0.00015342,2]
[334820290,1723603933012,-718.17,0.00015342,2]
[334820291,1723603933022,-645.37,0.00015342,2]
[334820292,1723603933031,-1456.02,0.00015342,2]
[334820293,1723603933041,-2925.6,0.00015342,2]
[334820294,1723603933050,-500.0,0.00015342,2]
[334820295,1723603933060,-500.0,0.00015342,2]
[334820296,1723603933069,-500.0,0.00015342,2]
[334820297,1723603933078,-500.0,0.00015342,2]
[334820298,1723603933088,-813.54,0.00015342,2]
[334820299,1723603933097,-500.0,0.00015342,2]
[334820300,1723603933106,-500.0,0.00015342,2]
[334820301,1723603933116,-702.46,0.00015342,2]
[334820302,1723603933125,-500.0,0.00015342,2]
[334820303,1723603933135,-1871.96,0.00015342,2]
[334820304,1723603933144,-500.0,0.00015342,2]
[334820305,1723603933154,-2920.7,0.00015342,2]
[334820306,1723603933163,-1199.21,0.00015342,2]
[334820307,1723603933172,-839.44,0.00015342,2]
[334820308,1723603933182,-3062.35,0.00015342,2]
[334820309,1723603933191,-500.0,0.00015342,2]
[334820310,1723603933202,-1954.93,0.00015342,2]
[334820311,1723603933212,-523.74,0.00015342,2]
[334820312,1723603933222,-500.0,0.00015342,2]
[334820313,1723603933233,-500.0,0.00015342,2]
[334820314,1723603933243,-556.57,0.00015342,2]
[334820315,1723603933254,-500.0,0.00015342,2]
[334820316,1723603933263,-500.0,0.00015342,2]
[334820317,1723603933273,-686.81,0.00015342,2]
[334820318,1723603933283,-765.71,0.00015342,2]
[334820319,1723603933293,-500.0,0.00015342,2]
[334820320,1723603933303,-500.0,0.00015342,2]
[334820321,1723603933313,-1285.93,0.00015342,2]
[334820322,1723603933323,-1141.42,0.00015342,2]
[334820323,1723603933332,-500.0,0.00015342,2]
[334820324,1723603933343,-1795.87,0.00015342,2]
[334820325,1723603933354,-500.0,0.00015342,2]
[334820326,1723603933364,-510.77,0.00015342,2]
[334820327,1723603933374,-500.0,0.00015342,2]
[334820328,1723603933383,-862.78,0.00015342,2]
[334820329,1723603933392,-500.0,0.00015342,2]
[334820330,1723603933401,-500.0,0.00015342,2]
[334820331,1723603933411,-500.0,0.00015342,2]
[334820332,1723603933420,-500.0,0.00015342,2]
[334820333,1723603933430,-2686.07,0.00015342,2]
[334820334,1723603933439,-500.0,0.00015342,2]
[334820335,1723603933449,-614.38,0.00015342,2]
[334820336,1723603933459,-4160.62,0.00015342,2]
[334820337,1723603933468,-500.0,0.00015342,2]
[334820338,1723603933478,-667.7,0.00015342,2]
[334820339,1723603933487,-500.0,0.00015342,2]
[334820340,1723603933496,-500.0,0.00015342,2]
[334820341,1723603933506,-500.0,0.00015342,2]
[334820342,1723603933515,-500.0,0.00015342,2]
[334820343,1723603933524,-500.0,0.00015342,2]
[334820344,1723603933533,-1879.0,0.00015342,2]
[334820345,1723603933543,-746.14,0.00015342,2]
[334820346,1723603933552,-3343.86,0.00015342,2]
[334820347,1723603933562,-485.73372255,0.00015342,2]
[334820348,1723603933571,-500.0,0.00015342,2]
[334820349,1723603933581,-500.0,0.00015342,2]
[334820350,1723603933590,-617.36897047,0.00015342,2]
[334820351,1723603933599,-500.0,0.00015342,2]
[334820352,1723603933608,-500.0,0.00015342,2]
[334820353,1723603933617,-500.0,0.00015342,2]
[334820354,1723603933626,-500.0,0.00015342,2]
[334820355,1723603933635,-500.0,0.00015342,2]
[334820356,1723603933644,-500.0,0.00015342,2]
[334820357,1723603933654,-2290.46,0.00015342,2]
[334820358,1723603933664,-4072.54,0.00015342,2]
[334820359,1723603933673,-801.76,0.00015342,2]
[334820360,1723603933682,-500.0,0.00015342,2]
[334820361,1723603933691,-500.0,0.00015342,2]
[334820362,1723603933700,-626.44,0.00015342,2]
[334820363,1723603933710,-1509.4,0.00015342,2]
[334820364,1723603933719,-2014.71,0.00015342,2]
[334820365,1723603933728,-500.0,0.00015342,2]
[334820366,1723603933737,-647.14375178,0.00015342,2]
[334820367,1723603933747,-155.08211247,0.00015342,2]
[334820368,1723603933756,-500.0,0.00015342,2]